fUST/lending_fUST_20240916
["ID","MTS","AMOUNT","RATE_DAILY","PERIOD"]
[338297484,1726486244714,-500.0,0.00019178,2]
[338297486,1726486244724,-282.20428915,0.00019178,2]
[338297488,1726486244733,-500.0,0.00019178,2]
[338297490,1726486244743,-500.0,0.00019178,2]
[338297492,1726486244752,-500.0,0.00019178,2]
[338297493,1726486244762,-500.0,0.00019178,2]
[338297494,1726486244771,-500.0,0.00019178,2]
[338297496,1726486244780,-694.22,0.00019178,2]
[338297498,1726486244789,-500.0,0.00019178,2]
[338297499,1726486244798,-500.0,0.00019178,2]
[338297501,1726486244807,-500.0,0.00019178,2]
[338297503,1726486244817,-967.43,0.00019178,2]
[338297505,1726486244826,-1001.02,0.00019178,2]
[338297507,1726486244836,-500.0,0.00019178,2]
[338297509,1726486244846,-1696.96,0.00019178,2]
[338297511,1726486244854,-151.0,0.00019178,2]
[338297513,1726486244863,-151.0,0.00019178,2]
[338297515,1726486244873,-151.0,0.00019178,2]
[338297517,1726486244882,-151.0,0.00019178,2]
[338297519,1726486244892,-231.493744,0.00019178,2]
[338297520,1726486244901,-755.66,0.00019178,2]
[338297522,1726486244910,-511.76,0.00019178,2]
[338297523,1726486244920,-500.0,0.00019178,2]
[338297524,1726486244929,-672.58,0.00019178,2]
[338297525,1726486244939,-308.215997,0.00019178,2]
[338297526,1726486244948,-1332.91,0.00019178,2]
[338297527,1726486244957,-308.215997,0.00019178,2]
[338297528,1726486244967,-308.215997,0.00019178,2]
[338297529,1726486244976,-308.215997,0.00019178,2]
[338297530,1726486244985,-308.215997,0.00019178,2]
[338297531,1726486244994,-500.0,0.00019178,2]
[338297532,1726486245004,-500.0,0.00019178,2]
[338297533,1726486245013,-308.215997,0.00019178,2]
[338297534,1726486245022,-771.78,0.00019178,2]
[338297535,1726486245032,-230.218836,0.00019178,2]
[338297536,1726486245041,-308.215997,0.00019178,2]
[338297537,1726486245050,-308.215997,0.00019178,2]
[338297538,1726486245059,-308.215997,0.00019178,2]
[338297539,1726486245069,-308.215997,0.00019178,2]
[338297540,1726486245078,-500.0,0.00019178,2]
[338297541,1726486245087,-308.215997,0.00019178,2]
[338297542,1726486245097,-308.215997,0.00019178,2]
[338297543,1726486245106,-560.15,0.00019178,2]
[338297544,1726486245115,-811.83,0.00019178,2]
[338297545,1726486245124,-500.0,0.00019178,2]
[338297546,1726486245134,-775.37,0.00019178,2]
[338297547,1726486245143,-500.0,0.00019178,2]
[338297548,1726486245152,-607.77,0.00019178,2]
[338297549,1726486245161,-500.0,0.00019178,2]
[338297550,1726486245171,-500.0,0.00019178,2]
[338297551,1726486245333,-500.0,0.00019178,2]
[338297552,1726486245371,-500.0,0.00019178,2]
[338297553,1726486245380,-500.0,0.00019178,2]
[338297554,1726486245390,-500.0,0.00019178,2]
[338297555,1726486245399,-500.0,0.00019178,2]
[338297556,1726486245409,-815.67,0.00019178,2]
[338297557,1726486245418,-500.0,0.00019178,2]
[338297558,1726486245427,-3874.86,0.00019178,2]
[338297559,1726486245438,-388.3022166,0.00019178,2]
[338297560,1726486245447,-500.0,0.00019178,2]
[338297561,1726486245456,-263.23354121,0.00019178,2]
[338297562,1726486245466,-500.0,0.00019178,2]
[338297563,1726486245476,-631.05,0.00019178,2]
[338297564,1726486245485,-500.0,0.00019178,2]
[338297565,1726486245496,-622.12,0.00019178,2]
[338297566,1726486245508,-500.0,0.00019178,2]
[338297567,1726486245517,-151.0,0.00019178,2]
[338297568,1726486245526,-151.0,0.00019178,2]
[338297569,1726486245536,-500.0,0.00019178,2]
[338297570,1726486245545,-151.0,0.00019178,2]
[338297571,1726486245554,-151.0,0.00019178,2]
[338297572,1726486245564,-151.0,0.00019178,2]
[338297573,1726486245573,-500.0,0.00019178,2]
[338297574,1726486245582,-151.0,0.00019178,2]
[338297575,1726486245591,-253.269986,0.00019178,2]
[338297576,1726486245601,-151.0,0.00019178,2]
[338297577,1726486245610,-500.0,0.00019178,2]
[338297578,1726486245620,-151.0,0.00019178,2]
[338297579,1726486245629,-151.0,0.00019178,2]
[338297580,1726486245639,-151.0,0.00019178,2]
[338297581,1726486245649,-500.71985358,0.00019178,2]
[338297582,1726486245658,-151.0,0.00019178,2]
[338297583,1726486245667,-500.0,0.00019178,2]
[338297584,1726486245677,-151.0,0.00019178,2]
[338297585,1726486245686,-151.0,0.00019178,2]
[338297586,1726486245695,-500.0,0.00019178,2]
[338297587,1726486245705,-151.0,0.00019178,2]
[338297588,1726486245715,-1026.08,0.00019178,2]
[338297589,1726486245724,-151.0,0.00019178,2]
[338297590,1726486245734,-500.0,0.00019178,2]
[338297591,1726486245743,-500.0,0.00019178,2]
[338297592,1726486245753,-151.0,0.00019178,2]
[338297593,1726486245763,-151.0,0.00019178,2]
[338297594,1726486245773,-151.0,0.00019178,2]
[338297595,1726486245782,-151.0,0.00019178,2]
[338297596,1726486245792,-151.0,0.00019178,2]
[338297597,1726486245801,-826.15,0.00019178,2]
[338297599,1726486245811,-151.0,0.00019178,2]
[338297601,1726486245820,-737.08,0.00019178,2]
[338297603,1726486245829,-600.85,0.00019178,2]
[338297605,1726486245840,-2023.83,0.00019178,2]
[338297607,1726486245849,-500.0,0.00019178,2]
[338297609,1726486245859,-500.0,0.00019178,2]
[338297610,1726486245867,-151.0,0.00019178,2]
[338297613,1726486245877,-500.0,0.00019178,2]
[338297615,1726486245886,-501.25152757,0.00019178,2]
[338297617,1726486245897,-151.0,0.00019178,2]
[338297619,1726486245908,-151.0,0.00019178,2]
[338297621,1726486245919,-151.0,0.00019178,2]
[338297623,1726486245930,-151.0,0.00019178,2]
[338297625,1726486245939,-500.0,0.00019178,2]
[338297627,1726486245949,-201.92773545,0.00019178,2]
[338297655,1726486246200,-298.07226455,0.00019178,2]
[338297657,1726486246210,-500.0,0.00019178,2]
[338297659,1726486246220,-500.0,0.00019178,2]
[338297661,1726486246229,-151.0,0.00019178,2]
[338297663,1726486246239,-500.0,0.00019178,2]
[338297665,1726486246249,-1003.39,0.00019178,2]
[338297667,1726486246261,-151.0,0.00019178,2]
[338297669,1726486246272,-500.0,0.00019178,2]
[338297671,1726486246281,-151.0,0.00019178,2]
[338297673,1726486246291,-500.0,0.00019178,2]
[338297675,1726486246300,-685.15,0.00019178,2]
[338297677,1726486246310,-151.0,0.00019178,2]
[338297679,1726486246319,-151.0,0.00019178,2]
[338297681,1726486246328,-151.0,0.00019178,2]
[338297683,1726486246338,-151.0,0.00019178,2]
[338297685,1726486246348,-533.0,0.00019178,2]
[338297687,1726486246357,-864.54,0.00019178,2]
[338297689,1726486246366,-1579.56,0.00019178,2]
[338297691,1726486246376,-500.0,0.00019178,2]
[338297693,1726486246385,-500.0,0.00019178,2]
[338297695,1726486246394,-151.0,0.00019178,2]
[338297697,1726486246403,-151.0,0.00019178,2]
[338297699,1726486246413,-1395.92,0.00019178,2]
[338297701,1726486246422,-1453.66,0.00019178,2]
[338297703,1726486246432,-500.0,0.00019178,2]
[338297705,1726486246441,-500.0,0.00019178,2]
[338297707,1726486246450,-948.43,0.00019178,2]
[338297709,1726486246460,-1494.25,0.00019178,2]
[338297711,1726486246470,-500.0,0.00019178,2]
[338297713,1726486246479,-151.0,0.00019178,2]
[338297715,1726486246490,-500.0,0.00019178,2]
[338297717,1726486246501,-151.0,0.00019178,2]
[338297719,1726486246511,-151.0,0.00019178,2]
[338297721,1726486246520,-151.0,0.00019178,2]
[338297723,1726486246529,-715.9,0.00019178,2]
[338297725,1726486246539,-236.034769,0.00019178,2]
[338297727,1726486246548,-500.0,0.00019178,2]
[338297729,1726486246558,-500.0,0.00019178,2]
[338297731,1726486246568,-899.06,0.00019178,2]
[338297733,1726486246578,-500.0,0.00019178,2]
[338297735,1726486246587,-500.0,0.00019178,2]
[338297737,1726486246597,-500.0,0.00019178,2]
[338297739,1726486246606,-500.0,0.00019178,2]
[338297741,1726486246616,-500.0,0.00019178,2]
[338297743,1726486246626,-500.0,0.00019178,2]
[338297745,1726486246636,-2643.92,0.00019178,2]
[338297747,1726486246646,-500.0,0.00019178,2]
[338297749,1726486246656,-408.169889,0.00019178,2]
[338297751,1726486246666,-500.0,0.00019178,2]
[338297753,1726486246675,-4483.93,0.00019178,2]
[338297755,1726486246685,-198.376902,0.00019178,2]
[338297757,1726486246696,-1583.98,0.00019178,2]
[338297759,1726486246705,-234.677504,0.00019178,2]
[338297761,1726486246715,-234.677504,0.00019178,2]
[338297763,1726486246725,-500.0,0.00019178,2]
[338297765,1726486246735,-234.677504,0.00019178,2]
[338297767,1726486246745,-234.677504,0.00019178,2]
[338297769,1726486246756,-234.677504,0.00019178,2]
[338297771,1726486246766,-500.0,0.00019178,2]
[338297773,1726486246776,-234.677504,0.00019178,2]
[338297775,1726486246787,-234.677504,0.00019178,2]
[338297777,1726486246797,-234.677504,0.00019178,2]
[338297779,1726486246806,-234.677504,0.00019178,2]
[338297781,1726486246815,-234.677504,0.00019178,2]
[338297783,1726486246824,-234.677504,0.00019178,2]
[338297785,1726486246833,-500.0,0.00019178,2]
[338297787,1726486246842,-234.677504,0.00019178,2]
[338297789,1726486246851,-500.0,0.00019178,2]
[338297791,1726486246860,-500.0,0.00019178,2]
[338297793,1726486246870,-593.6,0.00019178,2]
[338297795,1726486246879,-500.0,0.00019178,2]
[338297797,1726486246888,-500.0,0.00019178,2]
[338297798,1726486246897,-500.0,0.00019178,2]
[338297800,1726486246906,-965.47,0.00019178,2]
[338297802,1726486246915,-823.21,0.00019178,2]
[338297804,1726486246925,-250.0,0.00019178,2]
[338297806,1726486246935,-500.0,0.00019178,2]
[338297808,1726486246944,-500.0,0.00019178,2]
[338297810,1726486246954,-500.0,0.00019178,2]
[338297812,1726486246964,-500.0,0.00019178,2]
[338297814,1726486246973,-500.0,0.00019178,2]
[338297816,1726486246984,-664.33,0.00019178,2]
[338297818,1726486246994,-430.86045442,0.00019178,2]
[338297820,1726486247005,-151.0,0.00019178,2]
[338297822,1726486247014,-151.0,0.00019178,2]
[338297824,1726486247024,-151.0,0.00019178,2]
[338297826,1726486247035,-151.0,0.00019178,2]
[338297828,1726486247045,-151.0,0.00019178,2]
[338297830,1726486247055,-500.0,0.00019178,2]
[338297832,1726486247064,-151.0,0.00019178,2]
[338297834,1726486247073,-151.0,0.00019178,2]
[338297836,1726486247083,-151.0,0.00019178,2]
[338297838,1726486247092,-1006.74,0.00019178,2]
[338297840,1726486247103,-151.0,0.00019178,2]
[338297842,1726486247112,-151.0,0.00019178,2]
[338297844,1726486247123,-500.0,0.00019178,2]
[338297846,1726486247133,-151.0,0.00019178,2]
[338297848,1726486247144,-500.0,0.00019178,2]
[338297850,1726486247154,-617.47,0.00019178,2]
[338297852,1726486247164,-500.0,0.00019178,2]
[338297854,1726486247173,-715.26,0.00019178,2]
[338297856,1726486247183,-1609.68,0.00019178,2]
[338297858,1726486247192,-3600.16,0.00019178,2]
[338297860,1726486247202,-577.25,0.00019178,2]
[338297862,1726486247211,-896.93,0.00019178,2]
[338297864,1726486247221,-500.0,0.00019178,2]
[338297866,1726486247231,-500.0,0.00019178,2]
[338297868,1726486247240,-504.41,0.00019178,2]
[338297870,1726486247251,-764.02,0.00019178,2]
[338297872,1726486247270,-897.03,0.00019178,2]
[338297873,1726486247279,-500.0,0.00019178,2]
[338297875,1726486247288,-1478.58,0.00019178,2]
[338297877,1726486247298,-1452.81,0.00019178,2]
[338297879,1726486247307,-500.0,0.00019178,2]
[338297881,1726486247316,-500.0,0.00019178,2]
[338297883,1726486247326,-1288.39,0.00019178,2]
[338297885,1726486247335,-952.94,0.00019178,2]
[338297887,1726486247343,-500.0,0.00019178,2]
[338297889,1726486247352,-811.9,0.00019178,2]
[338297891,1726486247361,-500.0,0.00019178,2]
[338297892,1726486247370,-500.0,0.00019178,2]
[338297894,1726486247379,-4046.96,0.00019178,2]
[338297896,1726486247389,-2451.69,0.00019178,2]
[338297898,1726486247398,-173.718032,0.00019178,2]
[338297900,1726486247407,-173.718032,0.00019178,2]
[338297902,1726486247417,-173.718032,0.00019178,2]
[338297904,1726486247427,-173.718032,0.00019178,2]
[338297906,1726486247436,-173.718032,0.00019178,2]
[338297908,1726486247446,-173.718032,0.00019178,2]
[338297910,1726486247456,-151.0,0.00019178,2]
[338297912,1726486247466,-151.0,0.00019178,2]
[338297914,1726486247476,-151.0,0.00019178,2]
[338297916,1726486247486,-173.718032,0.00019178,2]
[338297918,1726486247495,-151.0,0.00019178,2]
[338297920,1726486247508,-151.0,0.00019178,2]
[338297922,1726486247518,-500.0,0.00019178,2]
[338297924,1726486247527,-151.0,0.00019178,2]
[338297926,1726486247537,-173.718032,0.00019178,2]
[338297927,1726486247547,-685.63,0.00019178,2]
[338297929,1726486247558,-173.718032,0.00019178,2]
[338297931,1726486247568,-173.718032,0.00019178,2]
[338297933,1726486247579,-151.0,0.00019178,2]
[338297935,1726486247589,-173.718032,0.00019178,2]
[338297937,1726486247599,-151.0,0.00019178,2]
[338297939,1726486247609,-173.718032,0.00019178,2]
[338297941,1726486247619,-151.0,0.00019178,2]
[338297943,1726486247629,-151.0,0.00019178,2]
[338297951,1726486247692,-151.0,0.00019178,2]
[338297952,1726486247702,-607.39,0.00019178,2]
[338297954,1726486247712,-500.0,0.00019178,2]
[338297956,1726486247721,-151.0,0.00019178,2]
[338297958,1726486247730,-207.438527,0.00019178,2]
[338297960,1726486247740,-151.0,0.00019178,2]
[338297962,1726486247753,-500.0,0.00019178,2]
[338297964,1726486247762,-151.0,0.00019178,2]
[338297966,1726486247772,-720.24,0.00019178,2]
[338297967,1726486247781,-4995.3,0.00019178,2]
[338297969,1726486247790,-644.84,0.00019178,2]
[338297971,1726486247799,-1203.99,0.00019178,2]
[338297973,1726486247808,-500.0,0.00019178,2]
[338297975,1726486247817,-500.0,0.00019178,2]
[338297977,1726486247827,-151.0,0.00019178,2]
[338297979,1726486247837,-2246.66,0.00019178,2]
[338297981,1726486247846,-500.0,0.00019178,2]
[338297983,1726486247856,-151.0,0.00019178,2]
[338297985,1726486247866,-995.23,0.00019178,2]
[338297987,1726486247875,-151.0,0.00019178,2]
[338297988,1726486247885,-151.0,0.00019178,2]
[338297991,1726486247898,-167.214274,0.00019178,2]
[338297993,1726486247910,-500.0,0.00019178,2]
[338297995,1726486247920,-1106.17,0.00019178,2]
[338297997,1726486247931,-500.0,0.00019178,2]
[338297999,1726486247941,-1281.63,0.00019178,2]
[338298001,1726486247952,-500.0,0.00019178,2]
[338298003,1726486247961,-500.0,0.00019178,2]
[338298005,1726486247971,-503.71513299,0.00019178,2]
[338298007,1726486247981,-500.0,0.00019178,2]
[338298009,1726486247991,-500.0,0.00019178,2]
[338298011,1726486248005,-186.12431,0.00019178,2]
[338298013,1726486248016,-186.12431,0.00019178,2]
[338298015,1726486248026,-500.0,0.00019178,2]
[338298017,1726486248036,-186.12431,0.00019178,2]
[338298019,1726486248045,-186.12431,0.00019178,2]
[338298021,1726486248055,-186.12431,0.00019178,2]
[338298023,1726486248065,-186.12431,0.00019178,2]
[338298025,1726486248074,-186.12431,0.00019178,2]
[338298027,1726486248084,-186.12431,0.00019178,2]
[338298028,1726486248093,-186.12431,0.00019178,2]
[338298030,1726486248103,-186.12431,0.00019178,2]
[338298032,1726486248113,-186.12431,0.00019178,2]
[338298034,1726486248122,-186.12431,0.00019178,2]
[338298036,1726486248131,-151.0,0.00019178,2]
[338298038,1726486248141,-500.0,0.00019178,2]
[338298040,1726486248150,-8384.65,0.00019178,2]
[338298042,1726486248160,-682.56,0.00019178,2]
[338298044,1726486248170,-1565.5,0.00019178,2]
[338298046,1726486248180,-1210.04,0.00019178,2]
[338298048,1726486248189,-500.0,0.00019178,2]
[338298050,1726486248200,-711.5,0.00019178,2]
[338298051,1726486248209,-500.0,0.00019178,2]
[338298053,1726486248219,-500.0,0.00019178,2]
[338298055,1726486248228,-500.0,0.00019178,2]
[338298057,1726486248238,-5671.32,0.00019178,2]
[338298059,1726486248248,-500.0,0.00019178,2]
[338298061,1726486248258,-500.0,0.00019178,2]
[338298063,1726486248268,-885.31,0.00019178,2]
[338298065,1726486248277,-2708.87,0.00019178,2]
[338298067,1726486248287,-434.09717023,0.00019178,2]
[338298069,1726486248296,-500.0,0.00019178,2]
[338298071,1726486248305,-629.95,0.00019178,2]
[338298073,1726486248315,-1810.56,0.00019178,2]
[338298075,1726486248325,-809.51,0.00019178,2]
[338298077,1726486248334,-500.0,0.00019178,2]
[338298078,1726486248344,-151.0,0.00019178,2]
[338298080,1726486248354,-151.0,0.00019178,2]
[338298082,1726486248363,-151.0,0.00019178,2]
[338298084,1726486248372,-151.0,0.00019178,2]
[338298086,1726486248382,-151.0,0.00019178,2]
[338298088,1726486248392,-504.45143237,0.00019178,2]
[338298090,1726486248401,-151.0,0.00019178,2]
[338298092,1726486248410,-500.0,0.00019178,2]
[338298094,1726486248419,-151.0,0.00019178,2]
[338298096,1726486248429,-151.0,0.00019178,2]
[338298098,1726486248438,-151.0,0.00019178,2]
[338298099,1726486248448,-256.677454,0.00019178,2]
[338298100,1726486248457,-1551.36,0.00019178,2]
[338298101,1726486248467,-500.0,0.00019178,2]
[338298102,1726486248476,-2825.6,0.00019178,2]
[338298103,1726486248486,-647.5097946,0.00019178,2]
[338298104,1726486248497,-5678.46,0.00019178,2]
[338298105,1726486248511,-151.0,0.00019178,2]
[338298106,1726486248521,-836.12,0.00019178,2]
[338298107,1726486248531,-23723.33,0.00019178,2]
[338298108,1726486248540,-151.0,0.00019178,2]
[338298109,1726486248550,-153.735683,0.00019178,2]
[338298110,1726486248559,-385.818707,0.00019178,2]
[338298111,1726486248569,-500.0,0.00019178,2]
[338298112,1726486248579,-385.818707,0.00019178,2]
[338298113,1726486248589,-385.818707,0.00019178,2]
[338298114,1726486248598,-385.818707,0.00019178,2]
[338298115,1726486248608,-385.818707,0.00019178,2]
[338298116,1726486248618,-385.818707,0.00019178,2]
[338298117,1726486248627,-385.818707,0.00019178,2]
[338298118,1726486248637,-385.818707,0.00019178,2]
[338298119,1726486248647,-385.818707,0.00019178,2]
[338298121,1726486248656,-385.818707,0.00019178,2]
[338298122,1726486248666,-385.818707,0.00019178,2]
[338298123,1726486248676,-385.818707,0.00019178,2]
[338298124,1726486248686,-479.818179,0.00019178,2]
[338298125,1726486248696,-479.818179,0.00019178,2]
[338298126,1726486248706,-479.818179,0.00019178,2]
[338298127,1726486248716,-479.818179,0.00019178,2]
[338298128,1726486248726,-479.818179,0.00019178,2]
[338298129,1726486248736,-479.818179,0.00019178,2]
[338298130,1726486248745,-479.818179,0.00019178,2]
[338298131,1726486248755,-479.818179,0.00019178,2]
[338298132,1726486248766,-500.0,0.00019178,2]
[338298133,1726486248776,-479.818179,0.00019178,2]
[338298134,1726486248785,-479.818179,0.00019178,2]
[338298135,1726486248794,-500.0,0.00019178,2]
[338298136,1726486248803,-500.0,0.00019178,2]
[338298137,1726486248813,-500.0,0.00019178,2]
[338298138,1726486248822,-479.818179,0.00019178,2]
[338298140,1726486248832,-1578.43,0.00019178,2]
[338298141,1726486248842,-479.818179,0.00019178,2]
[338298142,1726486248852,-151.0,0.00019178,2]
[338298143,1726486248863,-528.579624,0.00019178,2]
[338298145,1726486248873,-528.579624,0.00019178,2]
[338298147,1726486248883,-528.579624,0.00019178,2]
[338298149,1726486248892,-528.579624,0.00019178,2]
[338298151,1726486248902,-528.579624,0.00019178,2]
[338298152,1726486248912,-528.579624,0.00019178,2]
[338298154,1726486248922,-500.0,0.00019178,2]
[338298156,1726486248932,-426.1217,0.00019178,2]
[338298158,1726486248942,-528.579624,0.00019178,2]
[338298159,1726486248952,-426.1217,0.00019178,2]
[338298161,1726486248962,-528.579624,0.00019178,2]
[338298163,1726486248972,-528.579624,0.00019178,2]
[338298165,1726486248982,-426.1217,0.00019178,2]
[338298167,1726486248992,-528.579624,0.00019178,2]
[338298168,1726486249002,-426.1217,0.00019178,2]
[338298170,1726486249012,-500.0,0.00019178,2]
[338298172,1726486249022,-528.579624,0.00019178,2]
[338298174,1726486249032,-426.1217,0.00019178,2]
[338298176,1726486249043,-500.0,0.00019178,2]
[338298178,1726486249053,-500.0,0.00019178,2]
[338298180,1726486249063,-528.579624,0.00019178,2]
[338298182,1726486249073,-611.73,0.00019178,2]
[338298184,1726486249085,-426.1217,0.00019178,2]
[338298186,1726486249094,-1858.83,0.00019178,2]
[338298188,1726486249105,-426.1217,0.00019178,2]
[338298190,1726486249115,-426.1217,0.00019178,2]
[338298192,1726486249124,-426.1217,0.00019178,2]
[338298194,1726486249135,-426.1217,0.00019178,2]
[338298196,1726486249146,-426.1217,0.00019178,2]
[338298198,1726486249156,-426.1217,0.00019178,2]
[338298200,1726486249165,-500.0,0.00019178,2]
[338298202,1726486249175,-500.0,0.00019178,2]
[338298204,1726486249186,-500.0,0.00019178,2]
[338298206,1726486249196,-500.0,0.00019178,2]
[338298207,1726486249206,-1100.01,0.00019178,2]
[338298208,1726486249215,-625.47371148,0.00019178,2]
[338298210,1726486249225,-500.0,0.00019178,2]
[338298212,1726486249235,-500.0,0.00019178,2]
[338298214,1726486249245,-6578.38,0.00019178,2]
[338298215,1726486249257,-515.90772157,0.00019178,2]
[338298217,1726486249266,-399.60400373,0.00019178,2]
[338298219,1726486249277,-500.0,0.00019178,2]
[338298221,1726486249287,-500.0,0.00019178,2]
[338298223,1726486249296,-627.81,0.00019178,2]
[338298225,1726486249307,-1154.13,0.00019178,2]
[338298227,1726486249317,-439.787251,0.00019178,2]
[338298229,1726486249327,-439.787251,0.00019178,2]
[338298231,1726486249337,-439.787251,0.00019178,2]
[338298233,1726486249347,-439.787251,0.00019178,2]
[338298234,1726486249356,-439.787251,0.00019178,2]
[338298236,1726486249365,-439.787251,0.00019178,2]
[338298238,1726486249376,-874.765935,0.00019178,2]
[338298240,1726486249386,-874.765935,0.00019178,2]
[338298242,1726486249396,-874.765935,0.00019178,2]
[338298244,1726486249406,-439.787251,0.00019178,2]
[338298246,1726486249416,-874.765935,0.00019178,2]
[338298248,1726486249426,-439.787251,0.00019178,2]
[338298250,1726486249436,-874.765935,0.00019178,2]
[338298252,1726486249446,-439.787251,0.00019178,2]
[338298254,1726486249456,-874.765935,0.00019178,2]
[338298256,1726486249466,-513.34219717,0.00019178,2]
[338298258,1726486249476,-439.787251,0.00019178,2]
[338298260,1726486249486,-439.787251,0.00019178,2]
[338298262,1726486249497,-439.787251,0.00019178,2]
[338298264,1726486249511,-874.765935,0.00019178,2]
[338298266,1726486249521,-500.0,0.00019178,2]
[338298268,1726486249531,-874.765935,0.00019178,2]
[338298270,1726486249543,-151.0,0.00019178,2]
[338298271,1726486249553,-874.765935,0.00019178,2]
[338298273,1726486249563,-8330.12,0.00019178,2]
[338298275,1726486249573,-500.0,0.00019178,2]
[338298277,1726486249584,-874.765935,0.00019178,2]
[338298279,1726486249595,-874.765935,0.00019178,2]
[338298281,1726486249605,-24714.49,0.00019178,2]
[338298283,1726486249615,-874.765935,0.00019178,2]
[338298284,1726486249625,-500.0,0.00019178,2]
[338298285,1726486249635,-151.0,0.00019178,2]
[338298286,1726486249644,-3571.82,0.00019178,2]
[338298287,1726486249654,-500.0,0.00019178,2]
[338298288,1726486249664,-769.74,0.00019178,2]
[338298289,1726486249673,-500.0,0.00019178,2]
[338298290,1726486249683,-2379.51,0.00019178,2]
[338298291,1726486249692,-500.0,0.00019178,2]
[338298292,1726486249701,-500.0,0.00019178,2]
[338298293,1726486249711,-306.95409953,0.00019178,2]
[338298294,1726486249720,-151.0,0.00019178,2]
[338298295,1726486249730,-500.0,0.00019178,2]
[338298296,1726486249741,-1083.89,0.00019178,2]
[338298297,1726486249753,-1592.48,0.00019178,2]
[338298298,1726486249762,-500.0,0.00019178,2]
[338298299,1726486249772,-2327.81,0.00019178,2]
[338298300,1726486249781,-151.0,0.00019178,2]
[338298301,1726486249790,-500.0,0.00019178,2]
[338298302,1726486249799,-500.0,0.00019178,2]
[338298303,1726486249808,-3033.66,0.00019178,2]
[338298304,1726486249818,-500.0,0.00019178,2]
[338298306,1726486249828,-151.0,0.00019178,2]
[338298308,1726486249837,-1618.44,0.00019178,2]
[338298309,1726486249847,-732.88,0.00019178,2]
[338298311,1726486249856,-2839.36,0.00019178,2]
[338298312,1726486249866,-500.0,0.00019178,2]
[338298314,1726486249875,-1356.47,0.00019178,2]
[338298316,1726486249884,-500.0,0.00019178,2]
[338298318,1726486249894,-500.0,0.00019178,2]
[338298320,1726486249904,-2016.91,0.00019178,2]
[338298322,1726486249913,-562.5129184,0.00019178,2]
[338298324,1726486249922,-500.0,0.00019178,2]
[338298326,1726486249932,-2318.97,0.00019178,2]
[338298327,1726486249941,-500.0,0.00019178,2]
[338298330,1726486249951,-500.0,0.00019178,2]
[338298332,1726486249960,-2642.72,0.00019178,2]
[338298333,1726486249970,-500.0,0.00019178,2]
[338298334,1726486249980,-500.0,0.00019178,2]
[338298335,1726486249989,-500.0,0.00019178,2]
[338298336,1726486249999,-50110.61,0.00019178,2]
[338298337,1726486250009,-1334.98,0.00019178,2]
[338298338,1726486250018,-249.39113742,0.00019178,2]
[338298339,1726486250028,-500.0,0.00019178,2]
[338298341,1726486250037,-500.0,0.00019178,2]
[338298343,1726486250047,-500.0,0.00019178,2]
[338298345,1726486250058,-1550.76,0.00019178,2]
[338298347,1726486250068,-511.73,0.00019178,2]